bitfinex/quotes_SOLUSD_20240808
["timestamp","ask_amount","ask_price","bid_price","bid_amount"]
[1723160255723,33.29,161.49,161.4,6.1956]
[1723160255902,33.29,161.51,161.41,33.29]
[1723160256110,6.1939,161.45,161.41,33.29]
[1723160256436,6.1934,161.47,161.41,6.1953]
[1723160256739,6.1935,161.46,161.41,33.29]
[1723160256926,6.1935,161.46,161.42,45.0]
[1723160257512,33.29,161.51,161.42,45.0]
[1723160257715,6.1934,161.47,161.39,33.29]
[1723160257926,20.0,161.46,161.41,6.1953]
[1723160258135,6.1924,161.49,161.43,6.1945]
[1723160258309,6.1924,161.49,161.44,45.0]
[1723160258507,54.8581,161.53,161.44,45.0]
[1723160258723,15.4799,161.5,161.39,33.29]
[1723160258902,15.4799,161.5,161.4,45.0]
[1723160259100,33.29,161.49,161.38,15.4907]
[1723160259303,6.1951,161.42,161.38,15.4907]
[1723160259708,15.4799,161.5,161.39,33.29]
[1723160260017,33.29,161.51,161.41,15.4881]
[1723160260223,6.1923,161.49,161.44,6.1942]
[1723160260531,6.1923,161.49,161.42,1.23862417]
[1723160260532,6.1928,161.48,161.42,6.1947]
[1723160260704,48.7695,161.51,161.37,15.4914]
[1723160261030,33.29,161.49,161.38,84.4865]
[1723160261228,33.29,161.49,161.38,85.7254322]
[1723160261417,6.1946,161.43,161.38,78.29]
[1723160261606,6.1946,161.43,161.38,84.4864]
[1723160261918,6.1939,161.45,161.38,78.29]
[1723160262507,20.0,161.48,161.4,48.7793]
[1723160262508,6.1933,161.47,161.4,48.7793]
[1723160262700,6.1933,161.47,161.41,46.23868655]
[1723160263229,6.1933,161.47,161.41,52.43398655]
[1723160263434,6.1933,161.47,161.41,51.1953]
[1723160264030,6.1933,161.47,161.42,1.23868891]
[1723160264212,20.0,161.48,161.41,45.0]
[1723160264413,20.0,161.5,161.41,45.0]
[1723160264730,6.1928,161.48,161.43,22.0338]
[1723160264932,6.1928,161.48,161.44,45.0]
[1723160265108,6.1931,161.47,161.44,45.0]
[1723160265611,20.0,161.5,161.44,45.0]
[1723160265821,20.0,161.5,161.43,22.0338]
[1723160266225,6.1943,161.44,161.4,15.4893]
[1723160266429,6.194,161.45,161.4,15.4893]
[1723160266628,6.1946,161.43,161.39,22.2905]
[1723160267623,33.29,161.49,161.39,28.4863]
[1723160267840,20.0,161.48,161.39,28.4863]
[1723160268025,20.0,161.48,161.39,22.2905]
[1723160268423,6.1942,161.45,161.39,28.4866]
[1723160269408,6.1944,161.44,161.39,28.4866]
[1723160269837,6.1944,161.44,161.4,45.0]
[1723160270221,20.0,161.48,161.4,60.4893]
[1723160270626,20.0,161.48,161.4,45.0]
[1723160271835,6.1945,161.44,161.4,45.0]
[1723160272328,20.0,161.48,161.4,78.29]
[1723160272529,20.0,161.5,161.42,15.4874]
[1723160272918,6.1929,161.48,161.42,21.6822]
[1723160273119,20.0,161.5,161.42,15.4874]
[1723160273319,6.1926,161.49,161.44,6.1941]
[1723160273528,15.477,161.53,161.45,45.0]
[1723160273832,6.36834878,161.54,161.46,33.29]
[1723160274029,6.1913,161.52,161.47,6.193]
[1723160274228,6.1924,161.49,161.43,51.1942]
[1723160274945,21.84735329,161.58,161.45,15.4843]
[1723160275123,21.84735329,161.58,161.43,45.0]
[1723160275124,6.1913,161.52,161.46,45.0]
[1723160275743,6.1913,161.52,161.45,46.23826851]
[1723160275908,33.29,161.57,161.45,46.23826851]
[1723160275909,6.1908,161.53,161.48,6.1925]
[1723160276111,6.1908,161.53,161.47,21.6756]
[1723160276333,33.29,161.53,161.43,15.4861]
[1723160276515,6.1927,161.48,161.43,15.4861]
[1723160276712,6.1927,161.48,161.43,21.6806]
[1723160276935,33.29,161.53,161.4,34.52851761]
[1723160277131,6.1915,161.51,161.42,48.7774]
[1723160277433,6.1911,161.53,161.46,33.29]
[1723160277635,33.29,161.58,161.49,6.1923]
[1723160277833,33.29,161.58,161.5,1.23814807]
[1723160278337,28.28130402,161.65,161.5,1.23814807]
[1723160278338,263.545,161.69,161.57,12.6643]
[1723160278547,6.1865,161.64,161.58,85.71602848]
[1723160279036,6.545,161.69,161.58,79.52752848]
[1723160279221,6.1844,161.7,161.62,33.29]
[1723160279421,33.29,161.76,161.64,33.29]
[1723160279737,6.1813,161.78,161.71,6.1836]
[1723160279929,33.29,161.81,161.72,1.23647778]
[1723160280127,6.1824,161.75,161.72,1.23647778]
[1723160280443,290.29,161.82,161.72,1.23647778]
[1723160280615,6.1812,161.78,161.72,1.23647778]
[1723160280921,6.1823,161.76,161.71,45.0]
[1723160281332,34.1365128,161.8,161.71,45.0]
[1723160282027,6.1813,161.78,161.71,84.4738]
[1723160282538,6.1816,161.77,161.71,78.29]
[1723160282728,6.1814,161.78,161.71,78.29]
[1723160282926,6.1814,161.78,161.71,79.52624128]
[1723160283234,7.0271128,161.8,161.73,33.29]
[1723160283446,0.8465128,161.8,161.79,33.29]
[1723160283814,6.1778,161.87,161.79,84.4706]
[1723160284038,6.1778,161.87,161.8,51.1804]
[1723160284345,33.29,161.9,161.8,45.0]
[1723160284518,6.36298172,161.92,161.85,33.29]
[1723160284836,0.8465128,161.96,161.89,33.29]
[1723160285053,0.8465128,161.96,161.91,33.29]
[1723160285229,0.8465128,161.96,161.92,46.23486811]
[1723160285422,0.8465128,161.96,161.93,1.23486849]
[1723160285744,0.8465128,161.96,161.88,6.4788]
[1723160285935,6.1756,161.93,161.89,45.0]
[1723160286334,0.8465128,161.96,161.91,33.29]
[1723160286628,0.8465128,161.96,161.92,45.0]
[1723160287151,6.1748,161.95,161.92,45.0]
[1723160287437,6.1751,161.94,161.89,33.29]
[1723160287647,6.1751,161.94,161.9,45.0]
[1723160288026,0.8465128,161.96,161.9,45.0]
[1723160289240,0.8465128,161.96,161.91,34.52489715]
[1723160289538,0.8465128,161.96,161.92,45.0]
[1723160289725,0.8465128,161.96,161.93,1.23473604]
[1723160289928,7.0209128,161.96,161.92,45.0]
[1723160290127,7.0209128,161.96,161.91,45.0]
[1723160290327,6.1755,161.93,161.91,45.0]
[1723160290634,15.4373,161.95,161.85,33.29]
[1723160290942,48.7273,161.95,161.85,33.29]
[1723160291125,20.0,161.94,161.85,33.29]
[1723160291439,0.8465128,161.96,161.89,33.29]
[1723160291440,7.0209128,161.96,161.89,33.29]
[1723160292048,6.1747,161.95,161.89,33.29]
[1723160292345,0.8465128,161.96,161.88,21.6197]
[1723160292346,0.8465128,161.96,161.88,15.4427]
[1723160292542,6.1764,161.91,161.89,45.0]
[1723160292756,6.1755,161.93,161.88,45.0]
[1723160293125,6.175,161.95,161.88,51.1773]
[1723160293356,7.0209128,161.96,161.9,6.1765]
[1723160293541,7.0209128,161.96,161.91,46.23496809]
[1723160293738,0.8465128,161.96,161.91,79.52496809]
[1723160293942,0.8465128,161.96,161.92,6.1758]
[1723160294131,0.8465128,161.96,161.93,79.52483152]
[1723160294321,0.8465128,161.96,161.93,78.29]
[1723160294528,0.8465128,161.96,161.94,1.23485478]
[1723160295534,0.8465128,161.96,161.95,39.4647]
[1723160295829,0.8465128,161.96,161.95,45.0]
[1723160296357,0.8465128,161.96,161.95,40.69923268]
[1723160296653,0.8465128,161.96,161.95,84.4647]
[1723160297034,41.74082922,162.12,161.95,45.0]
[1723160297234,6.1713,162.05,161.99,48.7227]
[1723160297459,6.1706,162.06,162.0,51.1727]
[1723160297827,6.1709,162.05,162.0,51.1727]
[1723160298028,6.1709,162.05,162.01,1.23420458]
[1723160298253,6.1705,162.06,162.0,51.1727]
[1723160298435,6.1702,162.07,162.01,6.1723]
[1723160298623,6.1702,162.07,162.02,45.0]
[1723160299030,15.4229,162.1,162.02,45.0]
[1723160299241,15.4229,162.1,162.01,45.0]
[1723160299445,6.1701,162.08,162.02,6.1719]
[1723160299642,6.1701,162.07,162.03,45.0]
[1723160299849,6.1713,162.05,162.0,45.0]
[1723160300251,48.7122,162.11,162.0,45.0]
[1723160300451,33.29,162.11,162.02,6.1719]
[1723160300749,34.1365128,162.13,162.03,45.0]
[1723160300946,6.1697,162.09,162.03,51.1715]
[1723160301149,0.8465128,162.13,162.08,33.29]
[1723160301349,33.29,162.26,162.12,53.29]
[1723160301549,6.34951712,162.27,162.22,33.29]
[1723160301763,6.34951712,162.27,162.2,33.29]
[1723160301942,16.2515128,162.29,162.16,15.7884]
[1723160302139,16.2515128,162.29,162.17,46.23297813]
[1723160302337,33.29,162.28,162.18,1.23292439]
[1723160302533,33.29,162.28,162.17,45.0]
[1723160302738,6.1648,162.21,162.17,45.0]
[1723160302943,48.6977,162.26,162.16,45.0]
[1723160303251,6.1656,162.19,162.16,45.0]
[1723160303452,6.1649,162.21,162.15,45.0]
[1723160303646,0.8465128,162.29,162.18,33.29]
[1723160303852,0.8465128,162.29,162.21,6.1646]
[1723160304046,0.8465128,162.29,162.2,33.29]
[1723160304047,6.1622,162.28,162.22,46.23234686]
[1723160304244,0.8465128,162.29,162.24,33.29]
[1723160304463,0.8465128,162.29,162.26,33.29]
[1723160304754,0.8465128,162.29,162.27,45.0]
[1723160304959,0.8465128,162.29,162.28,15.4054]
[1723160305132,0.8465128,162.29,162.28,93.6954]
[1723160305330,0.8465128,162.29,162.28,94.92730466]
[1723160305634,27.744603,162.43,162.32,20.0]
[1723160305833,6.0,162.43,162.35,15.3979]
[1723160306058,6.0,162.43,162.36,46.23127724]
[1723160306256,6.0,162.43,162.37,6.1586]
[1723160306461,6.1576,162.4,162.38,45.0]
[1723160306755,6.0,162.43,162.37,1.23153625]
[1723160306756,6.1573,162.41,162.37,1.23153625]
[1723160306969,6.0,162.43,162.37,1.23153625]
[1723160307459,6.0,162.43,162.41,6.1572]
[1723160307755,6.0,162.43,162.42,45.0]
[1723160308751,6.0,162.43,162.38,6.5487]
[1723160308952,6.1569,162.42,162.39,45.0]
[1723160309151,6.0,162.43,162.37,31.8599]
[1723160309356,6.0,162.43,162.38,6.158]
[1723160309571,6.0,162.43,162.39,6.1579]
[1723160309752,6.0,162.43,162.37,31.8599]
[1723160309753,6.0,162.43,162.37,33.09111389]
[1723160309953,6.0,162.43,162.41,6.1572]
[1723160310144,6.0,162.43,162.37,31.8599]
[1723160310341,6.0,162.43,162.4,6.1576]
[1723160310651,6.0,162.43,162.41,45.0]
[1723160311148,6.0,162.43,162.4,45.0]
[1723160311566,6.0,162.43,162.41,21.5499]
[1723160311865,0.8465128,162.45,162.44,20.0]
[1723160312067,0.8465128,162.45,162.44,45.0]
[1723160312650,0.8465128,162.45,162.44,86.3104327]
[1723160312888,0.8465128,162.45,162.44,106.3104327]
[1723160313046,0.8465128,162.45,162.44,112.4665327]
[1723160313460,7.18339539,162.62,162.49,15.3854]
[1723160313674,0.8465128,162.62,162.46,6.5447]
[1723160313880,0.8465128,162.62,162.5,20.0]
[1723160314078,0.8465128,162.62,162.52,35.3823]
[1723160314262,0.8465128,162.62,162.53,45.0]
[1723160314263,6.15,162.6,162.53,45.0]
[1723160314467,6.1513,162.57,162.53,45.0]
[1723160314656,0.8465128,162.62,162.53,45.0]
[1723160314855,0.8465128,162.62,162.54,1.23020258]
[1723160315071,0.8465128,162.62,162.53,45.0]
[1723160315072,15.3719,162.64,162.55,1.23014261]
[1723160315381,0.1533288,162.62,162.55,1.23014261]
[1723160315549,0.1533288,162.62,162.55,21.23014261]
[1723160315745,0.1533288,162.62,162.57,20.0]
[1723160315945,0.1533288,162.62,162.58,46.22961318]
[1723160316383,0.1533288,162.62,162.59,7.37990261]
[1723160316674,0.1533288,162.62,162.6,45.0]
[1723160316863,6.1496,162.61,162.6,45.0]
[1723160317179,0.1533288,162.62,162.6,45.0]
[1723160317788,6.1496,162.61,162.6,45.0]
[1723160318072,0.1533288,162.62,162.55,20.0]
[1723160318247,0.1533288,162.62,162.54,40.08]
[1723160318248,0.1533288,162.62,162.57,20.0]
[1723160318445,0.1533288,162.62,162.59,6.1504]
[1723160318657,0.1533288,162.62,162.58,20.0]
[1723160318859,6.1458,162.72,162.66,6.1477]
[1723160319060,6.1459,162.71,162.66,6.1477]
[1723160319278,1.1005574,162.73,162.67,71.1474]
[1723160319573,6.1456,162.72,162.67,65.0]
[1723160319770,1.1005574,162.73,162.67,65.0]
[1723160319965,6.147,162.68,162.67,45.0]
[1723160320465,1.1005574,162.73,162.59,32.2445]
[1723160320466,6.1482,162.65,162.61,1.22937342]
[1723160320772,6.1493,162.62,162.56,21.8163]
[1723160320977,6.1493,162.62,162.56,23.04604768]
[1723160321201,30.7295,162.71,162.54,1.22978607]
[1723160321202,6.1505,162.59,162.54,1.22978607]
[1723160321471,40.08,162.69,162.51,1.2300509]
[1723160321648,15.3735,162.62,162.51,20.0]
[1723160321974,6.1501,162.6,162.55,6.1519]
[1723160322176,6.1501,162.6,162.53,35.3812]
[1723160322177,6.1501,162.6,162.53,41.5335]
[1723160322477,30.7392,162.66,162.53,41.5335]
[1723160322478,6.1504,162.59,162.54,6.1522]
[1723160322672,15.3715,162.64,162.53,15.3812]
[1723160322881,20.0,162.63,162.53,15.3812]
[1723160323058,6.1504,162.59,162.53,21.5335]
[1723160323257,6.1515,162.57,162.5,16.1131]
[1723160323477,6.1515,162.57,162.5,22.2666]
[1723160323657,6.1515,162.57,162.51,6.1533]
[1723160323859,20.0,162.63,162.48,46.4931]
[1723160323860,15.3744,162.61,162.48,6.4131]
[1723160324094,6.1554,162.46,162.42,6.6292]
[1723160324300,6.1561,162.44,162.37,76.2228]
[1723160324580,6.1566,162.43,162.37,38.92892739]
[1723160325152,15.3835,162.52,162.37,38.92892739]
[1723160325153,15.3835,162.52,162.42,6.1566]
[1723160325359,6.1536,162.51,162.44,6.156]
[1723160325564,6.1536,162.51,162.4,75.4734]
[1723160325565,30.7601,162.55,162.42,6.1565]
[1723160325780,20.0,162.54,162.42,6.1565]
[1723160326151,20.0,162.54,162.42,20.0]
[1723160326360,6.1538,162.5,162.44,6.156]
[1723160326564,15.3828,162.52,162.4,55.4734]
[1723160326761,15.3828,162.52,162.4,15.3934]
[1723160326978,6.1557,162.45,162.4,15.3934]
[1723160327185,6.1569,162.42,162.37,16.1428]
[1723160327401,6.1569,162.42,162.36,21.5563]
[1723160327402,30.7585,162.56,162.43,15.391]
[1723160327565,30.7585,162.56,162.44,1.23068798]
[1723160328081,6.1538,162.5,162.44,1.23068798]
[1723160328280,6.1532,162.52,162.44,1.23068798]
[1723160328485,15.378,162.57,162.43,16.62165738]
[1723160328660,15.378,162.57,162.44,45.0]
[1723160329072,6.1541,162.5,162.44,45.0]
[1723160329280,15.3813,162.54,162.44,45.0]
[1723160329594,6.1543,162.49,162.44,45.0]
[1723160329789,6.1546,162.48,162.44,45.0]
[1723160329967,15.3813,162.54,162.39,15.3945]
[1723160330167,15.3813,162.54,162.4,21.23101935]
[1723160330472,40.08,162.46,162.31,20.0]
[1723160330666,15.3904,162.44,162.31,6.161]
[1723160331012,40.08,162.45,162.32,15.401]
[1723160331291,6.6249,162.53,162.38,15.3953]
[1723160331588,20.0,162.52,162.39,1.2311366]
[1723160331889,71.6651,162.54,162.4,1.23111185]
[1723160331890,31.5851,162.54,162.4,1.23111185]
[1723160332183,6.1561,162.44,162.39,1.23095354]
[1723160332482,6.1561,162.44,162.4,1.23113569]
[1723160332667,15.3843,162.51,162.4,1.23113569]
[1723160333074,15.3802,162.55,162.4,16.62463569]
[1723160333260,15.3802,162.55,162.41,45.0]
[1723160334366,6.1547,162.48,162.41,51.1569]
[1723160334892,6.1551,162.47,162.41,45.0]
[1723160335210,15.3802,162.55,162.41,45.0]
[1723160335211,6.1554,162.46,162.41,45.0]
[1723160335365,6.1549,162.48,162.41,51.1571]
[1723160335568,6.1551,162.47,162.41,45.0]
[1723160336073,15.3802,162.55,162.41,45.0]
[1723160336270,6.1554,162.46,162.4,45.0]
[1723160336469,6.1556,162.46,162.4,45.0]
[1723160336859,15.3832,162.52,162.4,45.0]
[1723160337063,15.3832,162.52,162.41,6.1572]
[1723160337064,6.155,162.47,162.41,6.1572]
[1723160337264,6.155,162.47,162.42,45.0]
[1723160337560,20.0,162.54,162.37,6.1587]
[1723160337784,20.0,162.54,162.38,16.62685915]
[1723160337988,15.3823,162.53,162.38,16.62685915]
[1723160338175,20.0,162.52,162.38,15.3956]
[1723160338688,6.1561,162.44,162.38,21.5539]
[1723160338875,6.1568,162.42,162.36,1.23124082]
[1723160339068,6.1573,162.41,162.34,37.9955]
[1723160339279,46.1547,162.5,162.34,37.9955]
[1723160339280,6.1576,162.4,162.34,21.5588]
[1723160339470,30.7696,162.5,162.32,6.1605]
[1723160339471,6.1585,162.38,162.32,6.1605]
[1723160339671,6.1579,162.4,162.34,6.1598]
[1723160340287,15.3939,162.41,162.26,35.4066]
[1723160340581,15.3939,162.41,162.27,1.23187685]
[1723160341183,15.3939,162.41,162.28,6.1621]
[1723160341775,15.3939,162.41,162.3,15.4035]
[1723160341983,40.08,162.48,162.28,20.0]
[1723160341984,6.3793,162.5,162.4,6.1575]
[1723160342203,6.3793,162.5,162.36,15.3974]
[1723160342204,6.1565,162.43,162.36,15.3974]
[1723160342367,6.1561,162.45,162.37,45.0]
[1723160342694,6.1561,162.44,162.37,46.23124345]
[1723160342908,6.1561,162.44,162.39,6.1579]
[1723160343071,6.1553,162.47,162.4,45.0]
[1723160343267,55.4622,162.53,162.4,45.0]
[1723160343467,6.1542,162.49,162.42,21.5485]
[1723160343688,6.1542,162.49,162.43,51.1564]
[1723160343871,6.1546,162.48,162.43,51.1564]
[1723160344071,55.4622,162.53,162.43,51.1564]
[1723160344279,55.4622,162.53,162.43,45.0]
[1723160344998,6.1553,162.47,162.43,45.0]
[1723160345497,15.3787,162.57,162.45,15.3889]
[1723160345879,15.3787,162.57,162.46,45.0]
[1723160346280,15.3787,162.57,162.47,1.23076948]
[1723160346792,6.1531,162.52,162.47,16.61796948]
[1723160346983,6.1531,162.52,162.45,45.0]
[1723160346984,6.1538,162.5,162.45,45.0]
[1723160347181,6.1538,162.5,162.45,51.1556]
[1723160347501,6.1534,162.51,162.46,1.23073273]
[1723160347709,15.3809,162.54,162.45,45.0]
[1723160347894,40.08,162.53,162.44,6.6218]
[1723160348208,15.3837,162.51,162.39,6.1626]
[1723160348376,6.1557,162.45,162.39,12.3205]
[1723160348698,6.1561,162.45,162.39,12.3205]
[1723160348884,6.1561,162.45,162.4,6.1576]
[1723160349489,6.1553,162.46,162.4,6.1576]
[1723160350090,6.1553,162.46,162.41,6.1572]
[1723160350288,6.155,162.47,162.41,6.1572]
[1723160350493,6.155,162.47,162.42,45.0]
[1723160350691,15.3869,162.48,162.39,6.1626]
[1723160350983,6.158,162.4,162.34,15.3992]
[1723160351280,30.771,162.5,162.39,6.1579]
[1723160351281,6.1557,162.46,162.39,6.1579]
[1723160351482,6.1557,162.45,162.39,6.1579]
[1723160351682,55.4654,162.5,162.39,6.1579]
[1723160351887,20.0,162.49,162.39,6.1579]
[1723160352188,15.3854,162.5,162.4,15.3937]
[1723160352504,15.3854,162.5,162.41,6.1571]
[1723160352693,15.3854,162.5,162.42,45.0]
[1723160352894,6.1554,162.46,162.42,45.0]
[1723160353096,6.1554,162.46,162.41,45.0]
[1723160353605,6.1557,162.45,162.41,45.0]
[1723160353806,40.08,162.53,162.43,22.6577]
[1723160354024,40.08,162.53,162.41,45.0]
[1723160354025,24.648913,162.68,162.58,20.0]
[1723160354312,19.32148637,162.94,162.5,40.08]
[1723160354313,1.1005574,162.94,162.75,20.0]
[1723160354483,1.1005574,162.94,162.83,40.08]
[1723160354806,1.1005574,162.94,162.86,20.0]
[1723160355123,1.1005574,162.94,162.86,15.3498]
[1723160355283,6.1399,162.87,162.79,20.0]
[1723160355484,6.1404,162.86,162.8,45.0]
[1723160355697,1.1005574,162.94,162.8,46.22801097]
[1723160355900,1.1005574,162.94,162.83,20.0]
[1723160356112,1.1005574,162.94,162.85,20.0]
[1723160356280,1.1005574,162.94,162.86,46.22748942]
[1723160356484,1.1005574,162.94,162.91,6.1383]
[1723160356713,1.1005574,162.94,162.93,20.0]
[1723160357008,1.1005574,162.94,162.93,45.0]
[1723160357186,1.1005574,162.94,162.92,45.0]
[1723160357802,1.1005574,162.94,162.9,20.0]
[1723160357803,1.1005574,162.94,162.93,1.2270207]
[1723160357998,1.1005574,162.94,162.91,45.0]
[1723160358390,1.1005574,162.94,162.9,45.0]
[1723160358714,1.1005574,162.94,162.9,51.1385]
[1723160359017,1.1005574,162.94,162.77,20.0]
[1723160359018,1.1005574,162.94,162.83,15.353]
[1723160359186,1.1005574,162.94,162.84,20.0]
[1723160359389,6.1378,162.93,162.84,20.0]
[1723160359587,7.2377574,162.94,162.84,21.22754384]
[1723160359791,1.1005574,162.94,162.88,20.0]
[1723160360092,1.1005574,162.94,162.83,20.0]
[1723160360299,6.1385,162.91,162.83,27.36873795]
[1723160360493,1.1005574,162.94,162.83,21.22763795]
[1723160361004,6.1388,162.9,162.83,1.22763795]
[1723160361314,1.1005574,162.94,162.77,40.08]
[1723160361315,6.1403,162.86,162.79,6.1427]
[1723160361606,1.1005574,162.94,162.81,20.0]
[1723160361791,6.14,162.87,162.79,6.1427]
[1723160362185,6.14,162.87,162.8,6.1423]
[1723160362405,1.1005574,162.94,162.82,20.0]
[1723160362709,6.1381,162.92,162.84,20.0]
[1723160362893,21.1005574,162.94,162.85,1.22759205]
[1723160363097,21.1005574,162.94,162.86,1.22768053]
[1723160363289,1.1005574,162.94,162.85,1.22748959]
[1723160363491,6.1381,162.92,162.85,1.22748959]
[1723160363789,6.1377,162.93,162.85,1.22748959]
[1723160364190,1.1005574,162.94,162.87,20.0]
[1723160364495,1.1005574,162.94,162.88,46.22731026]
[1723160364798,6.1382,162.92,162.89,1.22741275]
[1723160365004,6.1382,162.92,162.87,45.0]
[1723160365602,6.1382,162.92,162.88,1.22755658]
[1723160365925,6.1384,162.91,162.87,45.0]
[1723160366215,1.1005574,162.94,162.88,1.22761563]
[1723160366505,1.1005574,162.94,162.88,52.36701563]
[1723160366698,7.2378574,162.94,162.88,52.36701563]
[1723160366898,1.1005574,162.94,162.88,45.0]
[1723160367097,1.1005574,162.94,162.89,1.22749758]
[1723160367300,6.1387,162.9,162.83,6.1413]
[1723160367502,6.14,162.87,162.81,41.4969]
[1723160367702,41.1805574,162.94,162.81,35.3552]
[1723160368092,41.1805574,162.94,162.81,41.4972]
[1723160368290,6.1406,162.85,162.77,35.3588]
[1723160368512,6.1401,162.87,162.77,36.58681601]
[1723160368811,40.08,162.91,162.78,6.1429]
[1723160369122,40.08,162.91,162.77,36.58681601]
[1723160369123,40.08,162.91,162.77,35.3588]
[1723160369415,6.1414,162.83,162.77,22.73049804]
[1723160369618,6.1417,162.82,162.77,15.3588]
[1723160369802,40.08,162.88,162.78,1.22830638]
[1723160370004,2.16639285,162.97,162.78,1.22830638]
[1723160370005,24.581831,163.18,162.86,40.08]
[1723160370335,40.08,163.23,163.1,15.328]
[1723160370496,40.08,163.2,163.05,15.3319]
[1723160370818,40.08,163.2,162.92,20.0]
[1723160370819,40.08,163.09,162.92,20.0]
[1723160371003,40.08,163.09,162.95,15.3414]
[1723160371206,6.134,163.03,162.96,20.0]
[1723160371409,40.08,163.06,162.9,35.3462]
[1723160371727,15.3333,163.16,162.92,20.0]
[1723160371728,15.3307,163.08,162.92,20.0]
[1723160372014,40.08,163.06,162.9,35.3462]
[1723160372207,6.1363,162.97,162.9,35.3462]
[1723160372408,40.08,163.03,162.91,1.22717837]
[1723160372719,40.08,163.03,162.88,6.1393]
[1723160372720,6.1374,162.94,162.88,1.22717837]
[1723160372933,6.1374,162.94,162.87,20.0]
[1723160373418,6.1374,162.94,162.85,15.3508]
[1723160373631,6.1374,162.94,162.86,20.0]
[1723160373832,40.08,163.0,162.82,6.1415]
[1723160373833,6.1388,162.9,162.82,6.1415]
[1723160373997,15.3377,163.0,162.84,15.3519]
[1723160373998,55.4177,163.0,162.84,15.3519]
[1723160374196,15.3412,162.96,162.81,20.1123106]
[1723160374411,6.1392,162.89,162.81,20.1123106]
[1723160374613,15.3412,162.96,162.81,1.34012954]
[1723160374917,6.1388,162.9,162.82,6.1415]
[1723160375128,6.1388,162.9,162.83,1.2277158]
[1723160375416,6.1392,162.89,162.83,1.2277158]
[1723160375616,40.08,162.94,162.81,0.1123106]
[1723160376012,6.1401,162.87,162.81,0.1123106]
[1723160376601,6.1407,162.85,162.81,0.1123106]
[1723160377619,6.1405,162.86,162.81,0.1123106]
[1723160377825,6.1397,162.88,162.81,0.1123106]
[1723160378014,6.1397,162.88,162.81,1.34023379]
[1723160378205,6.1399,162.87,162.81,1.34023379]
[1723160378404,55.4252,162.92,162.81,1.34023379]
[1723160378606,20.0,162.91,162.81,0.1123106]
[1723160379530,6.1406,162.85,162.81,0.1123106]
[1723160379721,20.0,162.91,162.81,0.1123106]
[1723160380021,6.1406,162.85,162.81,1.34034628]
[1723160380722,6.1406,162.85,162.81,0.1123106]
[1723160380924,55.4252,162.92,162.82,1.22807481]
[1723160381117,44.597693,163.04,162.87,26.1397]
[1723160381118,24.597693,163.04,162.87,26.1397]
[1723160381302,56.624,163.05,162.81,60.1923106]
[1723160381303,40.08,163.02,162.88,80.3483]
[1723160381509,56.624,163.05,162.9,6.1387]
[1723160381724,56.624,163.05,162.91,46.22707148]
[1723160381924,56.624,163.05,162.91,45.0]
[1723160382124,40.08,163.02,162.91,45.0]
[1723160382714,40.08,163.02,162.9,46.22711885]
[1723160383238,20.0,163.01,162.9,7.36571885]
[1723160383419,40.08,163.02,162.91,51.1383]
[1723160383617,40.08,163.02,162.92,1.22711611]
[1723160383815,40.08,163.02,162.91,45.0]
[1723160384015,20.0,163.01,162.89,1.22711468]
[1723160384321,20.0,163.01,162.89,46.22711468]
[1723160384510,20.0,163.01,162.89,45.0]